{"text_format":"1","workbook":"xlsx","n_sheets":5,"sheets":["Establishment details","List","Translations","Refinement der Genotypisierung","Validierung"],"not_rendered":{"charts":0,"images":1,"macros":1,"external_links":1,"defined_names":111,"comments":0,"pivot_tables":0},"unopened":[],"bounds":{"document_bytes":16777216,"sheet_cells":100000,"rows_first":2000,"rows_last":500,"rows_between":2000,"halvings":0,"cell_chars":16384,"cell_head_chars":4096},"cells_cut":0,"cells_raw":0,"read":"whole","date_system":"1900"}

{"sheet":"Establishment details","index":0,"n_rows":14,"n_cols":3,"rows_kept":14,"cut":false,"hidden":true,"merged":[[0,1,0,4],[16,1,16,4]]}
[null,{"$f":"CONCATENATE(\"Animal use data \",D14)","v":"Animal use data "}]
[]
[]
[null,null,"Country:"]
[]
[null,null,"First name:"]
[]
[null,null,"Last name:"]
[]
[null,null,"Email:"]
[]
[null,null,"Establishment:"]
[]
[null,null,"Reported year:"]

{"sheet":"List","index":1,"n_rows":3,"n_cols":20,"rows_kept":3,"cut":false,"hidden":false,"merged":[[0,0,1,1],[1,14,1,16],[0,4,0,10],[0,11,1,12],[1,8,1,10],[1,4,1,7]]}
[null,null,null,null,"zur Aktivierung des Formulars die Makros aktivieren (i.d.R. gelbe Leiste \"Inhalt aktivieren\")",null,null,null,null,null,null,"Die Angabe ist verpflichtend für alle genotypisierten Tiere, außer wenn die Genotypisierung bereits in Tabelle 1 gemeldet wurde."]
[null,null,null,null,"bei manueller Eingabe von Daten die Zeilen bitte nacheinander von links (Spalte A) nach rechts ausfüllen",null,null,null,"maximal eine Kategorie wählen; oder dreimal \"Nein\" (z.B. Tiere aus WT-Linien)",null,null,null,null,null,"nur wenn Tötung nach § 4 Abs. 3 TierSchG (Spalte K = Ja)"]
[{"$f":"LabelRecordType","v":"Art der Meldung"},{"$f":"LabelId1","v":"Bezeichnung (z.B. Aktenzeichen)"},{"$f":"LabelId2","v":"BfR-ID"},{"$f":"LabelId3","v":"BfR-Kommentar"},{"$f":"LabelAnimalSpecies","v":"Tierart"},{"$f":"LabelSpecifyOtherAnimalSpecies","v":"bei Anderen"},{"$f":"LabelNumberOfAnimals","v":"Anzahl"},{"$f":"LabelGeneticStatus","v":"Genetischer Status"},{"$f":"LabelCreationOfNewGL","v":"Schaffung einer neuen genetisch veränderten Linie"},{"$f":"LabelMaintenance","v":"Erhaltung von Kolonien genetisch veränderter Tiere"},{"$f":"LabelCollectionOfOrgans","v":"Tötung nach § 4 Abs. 3 TierSchG (Tötung für Organe und Gewebe)"},{"$f":"LabelMethodOfTissueSampling","v":"Methode der Genotypisierung"},{"$f":"LabelMethodOfTissueSamplingSpecifyOther","v":"bei Anderen"},{"$f":"LabelComments","v":"Kommentare"},{"$f":"LabelField_1","v":"Wiederverwendung (erneute Verwendung) nach abgeschlossenem Tierversuch (§ 18 TierSchVersV)"},{"$f":"LabelField_2","v":"wissenschaftlicher Zweck der Organe/Gewebe"},{"$f":"LabelField_3","v":"bei Anderen"},{"$f":"LabelField_4","v":"Kommentar"},{"$f":"LabelField_5","v":"Kommentar"},{"$f":"LabelField_6","v":"Field 6"}]

{"sheet":"Translations","index":2,"n_rows":89,"n_cols":63,"rows_kept":89,"cut":false,"hidden":true,"merged":[[2,42,2,44],[2,46,2,47]]}
["Typ der Meldung","Code","Tierart",null,"Code + Type",null,null,null,null,null,null,"Länder",null,null,null,"J/N",null,null,null,"Genetischer Status",null,null,null,null,null,null,"Meldezeitraum",null,null,"Methode der Genotypisierung",null,null,null,null,null,null,"Id1 Dropdown values","Id2 Dropdown values","Id3 Dropdown values","Other Species Dropdown values","Other Methods of tissue sampling Dropdown values",null,"Table Headers"]
["[IR1] Gewebeproben (nicht-invasive Genotypisierung oder Überschussgewebe)","A1","Mäuse (Mus musculus)",null,{"$f":"CONCATENATE(\"[\",B2,\"] \",C2)","v":"[A1] Mäuse (Mus musculus)"},null,null,null,null,null,null,"Austria",null,null,null,"[N] Nein",null,null,null,"[GS1] Genetisch nicht verändert",null,null,null,null,null,null,2021,null,null,"[ST1] Gewebeprobe im Rahmen der Markierung mittels Ohrlochmarkierung",null,null,null,null,null,null,null,null,null,null,null,null,"Art der Meldung","Bezeichnung (z.B. Aktenzeichen)","BfR-ID","BfR-Kommentar","Tierart","bei Anderen","Anzahl","Genetischer Status","Schaffung einer neuen genetisch veränderten Linie","Erhaltung von Kolonien genetisch veränderter Tiere","Tötung nach § 4 Abs. 3 TierSchG (Tötung für Organe und Gewebe)","Methode der Genotypisierung","bei Anderen","Kommentare","Wiederverwendung (erneute Verwendung) nach abgeschlossenem Tierversuch (§ 18 TierSchVersV)","wissenschaftlicher Zweck der Organe/Gewebe","bei Anderen","Kommentar","Kommentar","Field 6","Informationen zu Verbesserungen (Refinement) der Methoden zur Genotypsierung, insbesondere bei Gewebeproben"]
["[IR2] Tiere, die gezüchtet und getötet wurden, aber nicht im Tierversuch nach § 7 Abs. 2 TierSchG verwendet wurden","A2","Ratten (Rattus norvegicus)",null,"[A2] Ratten (Rattus norvegicus)",null,null,null,null,null,null,"Belgium",null,null,null,"[Y] Ja",null,null,null,"[GS2] Genetisch verändert und kein pathologischer Phänotyp aufgetreten",null,null,null,null,null,null,2022,null,null,"[ST2] Gewebeprobe im Rahmen der Markierung mittels Toe Clipping",null,null,null,null,null,null,null,null,null,null,null,null,"Specific userform1 translations"]
[null,"A3","Meerschweinchen (Cavia porcellus)",null,"[A3] Meerschweinchen (Cavia porcellus)",null,null,null,null,null,null,"Bulgaria",null,null,null,null,null,null,null,null,null,null,null,null,null,null,2023,null,null,"[NG1] Nicht-invasive Genotypisierung: Haarprobe",null,null,null,null,null,null,null,null,null,null,null,"Previous","vorherige Zeile"]
[null,"A4","Goldhamster (Mesocricetus auratus)",null,"[A4] Goldhamster (Mesocricetus auratus)",null,null,null,null,null,null,"Croatia",null,null,null,null,null,null,null,null,null,null,null,null,null,null,2024,null,null,"[NG2] Nicht-invasive Genotypisierung: Beobachtung unter besonderem Licht",null,null,null,null,null,null,null,null,null,null,null,"Current Row","Zeile"]
[null,"A5","Chinesischer Grauhamster (Cricetulus griseus)",null,"[A5] Chinesischer Grauhamster (Cricetulus griseus)",null,null,null,null,null,null,"Cyprus",null,null,null,null,null,null,null,null,null,null,null,null,null,null,2025,null,null,"[NG3] Nicht-invasive Genotypisierung: Post Mortem",null,null,null,null,null,null,null,null,null,null,null,"Go!","Laden"]
[null,"A6","Mongolische Rennmäuse (Meriones unguiculatus)",null,"[A6] Mongolische Rennmäuse (Meriones unguiculatus)",null,null,null,null,null,null,"Czech Republic",null,null,null,null,null,null,null,null,null,null,null,null,null,null,2026,null,null,"[NG4] Nicht-invasive Genotypisierung: Andere",null,null,null,null,null,null,null,null,null,null,null,"Next","Weiter"]
[null,"A7","Andere Nager (Andere Rodentia)",null,"[A7] Andere Nager (Andere Rodentia)",null,null,null,null,null,null,"Denmark",null,null,null,null,null,null,null,null,null,null,null,null,null,null,2027,null,null,null,null,null,null,null,null,null,null,null,null,null,null,"Save","Speichern"]
[null,"A8","Kaninchen (Oryctolagus cuniculus)",null,"[A8] Kaninchen (Oryctolagus cuniculus)",null,null,null,null,null,null,"Estonia",null,null,null,null,null,null,null,null,null,null,null,null,null,null,2028,null,null,null,null,null,null,null,null,null,null,null,null,null,null,"Save & Duplicate","Speichern & Duplizieren"]
[null,"A9","Katzen (Felis catus)",null,"[A9] Katzen (Felis catus)",null,null,null,null,null,null,"Finland",null,null,null,null,null,null,null,null,null,null,null,null,null,null,2029,null,null,null,null,null,null,null,null,null,null,null,null,null,null,"Cancel","Abbrechen"]
[null,"A10","Hunde (Canis familiaris)",null,"[A10] Hunde (Canis familiaris)",null,null,null,null,null,null,"France",null,null,null,null,null,null,null,null,null,null,null,null,null,null,2030,null,null,null,null,null,null,null,null,null,null,null,null,null,null,"Row Content","Inhalt der Zeile"]
[null,"A11","Frettchen (Mustela putorius furo)",null,"[A11] Frettchen (Mustela putorius furo)",null,null,null,null,null,null,"Germany",null,null,null,null,null,null,null,null,null,null,null,null,null,null,2031,null,null,null,null,null,null,null,null,null,null,null,null,null,null,"Animal Use Details Form","Formular zur Eingabe von Versuchstieren"]
[null,"A12","Andere Fleischfresser (Andere Carnivora)",null,"[A12] Andere Fleischfresser (Andere Carnivora)",null,null,null,null,null,null,"Greece",null,null,null,null,null,null,null,null,null,null,null,null,null,null,2032]
[null,"A13","Pferde, Esel und Kreuzungen (Equidae)",null,"[A13] Pferde, Esel und Kreuzungen (Equidae)",null,null,null,null,null,null,"Hungary",null,null,null,null,null,null,null,null,null,null,null,null,null,null,2033]
[null,"A14","Schweine (Sus scrofa domesticus)",null,"[A14] Schweine (Sus scrofa domesticus)",null,null,null,null,null,null,"Ireland",null,null,null,null,null,null,null,"Kombinierter Zweck"]
[null,"A15","Ziegen (Capra aegagrus hircus)",null,"[A15] Ziegen (Capra aegagrus hircus)",null,null,null,null,null,null,"Italy",null,null,null,null,null,null,null,"[PB1] (Grundlagenforschung) Onkologie"]
[null,"A16","Schafe (Ovis aries)",null,"[A16] Schafe (Ovis aries)",null,null,null,null,null,null,"Latvia",null,null,null,null,null,null,null,"[PB2] (Grundlagenforschung) Kardiovaskuläres System (Blut- und Lymphgefäße)"]
[null,"A17","Rinder (Bos taurus)",null,"[A17] Rinder (Bos taurus)",null,null,null,null,null,null,"Lithuania",null,null,null,null,null,null,null,"[PB3] (Grundlagenforschung) Nervensystem"]
[null,"A18","Halbaffen (Prosimia)",null,"[A18] Halbaffen (Prosimia)",null,null,null,null,null,null,"Luxembourg",null,null,null,null,null,null,null,"[PB4] (Grundlagenforschung) Atmungssystem"]
[null,"A19","Marmosetten und Tamarine (eg. Callithrix jacchus)",null,"[A19] Marmosetten und Tamarine (eg. Callithrix jacchus)",null,null,null,null,null,null,"Malta",null,null,null,null,null,null,null,"[PB5] (Grundlagenforschung) Gastrointestinales System, einschließlich Leber"]
[null,"A20","Javaneraffen (Macaca fascicularis)",null,"[A20] Javaneraffen (Macaca fascicularis)",null,null,null,null,null,null,"Netherlands",null,null,null,null,null,null,null,"[PB6] (Grundlagenforschung) Muskuloskelettales System"]
[null,"A21","Rhesusaffen (Macaca mulatta)",null,"[A21] Rhesusaffen (Macaca mulatta)",null,null,null,null,null,null,"Poland",null,null,null,null,null,null,null,"[PB7] (Grundlagenforschung) Immunsystem"]
[null,"A22","Grüne Meerkatzen (Chloderocebus spp.) (in der Regel auch pygerythrus oder sabaeus)",null,"[A22] Grüne Meerkatzen (Chloderocebus spp.) (in der Regel auch pygerythrus oder sabaeus)",null,null,null,null,null,null,"Portugal",null,null,null,null,null,null,null,"[PB8] (Grundlagenforschung) Urogenitales System/Fortpflanzungssystem"]
[null,"A23","Paviane (Papio spp.)",null,"[A23] Paviane (Papio spp.)",null,null,null,null,null,null,"Romania",null,null,null,null,null,null,null,"[PB9] (Grundlagenforschung) Sinnesorgane (Haut, Augen und Ohren)"]
[null,"A24","Totenkopfaffen (eg. Saimiri sciureus)",null,"[A24] Totenkopfaffen (eg. Saimiri sciureus)",null,null,null,null,null,null,"Slovakia",null,null,null,null,null,null,null,"[PB10] (Grundlagenforschung) Endokrines System/Stoffwechsel"]
[null,"A25-1","Andere Arten von Neuweltaffen (Andere Arten von Cercopithecoidea)",null,"[A25-1] Andere Arten von Neuweltaffen (Andere Arten von Cercopithecoidea)",null,null,null,null,null,null,"Slovenia",null,null,null,null,null,null,null,"[PB14] (Grundlagenforschung) Entwicklungsbiologie"]
[null,"A25-2","Andere Arten von Altweltaffen (Andere Arten von Ceboidea)",null,"[A25-2] Andere Arten von Altweltaffen (Andere Arten von Ceboidea)",null,null,null,null,null,null,"Spain",null,null,null,null,null,null,null,"[PB11] (Grundlagenforschung) Multisystemisch"]
[null,"A26","Menschenaffen (Hominoidea)",null,"[A26] Menschenaffen (Hominoidea)",null,null,null,null,null,null,"Sweden",null,null,null,null,null,null,null,"[PB12] (Grundlagenforschung) Ethologie/Tierverhalten/Tierbiologie"]
[null,"A27","Andere Säugetiere (Andere Mammalia)",null,"[A27] Andere Säugetiere (Andere Mammalia)",null,null,null,null,null,null,"United Kingdom",null,null,null,null,null,null,null,"[PB13] (Grundlagenforschung) Andere"]
[null,"A28","Haushühner (Gallus gallus domesticus)",null,"[A28] Haushühner (Gallus gallus domesticus)",null,null,null,null,null,null," ",null,null,null,null,null,null,null,"[PT21] (Transl./angewandte Forschung) Krebserkrankungen des Menschen"]
[null,"A37","Truthühner (Meleagris gallopavo)",null,"[A37] Truthühner (Meleagris gallopavo)",null,null,null,null,null,null," ",null,null,null,null,null,null,null,"[PT22] (Transl./angewandte Forschung) Infektionskrankheiten des Menschen"]
[null,"A29","Andere Vögel (Andere Aves)",null,"[A29] Andere Vögel (Andere Aves)",null,null,null,null,null,null," ",null,null,null,null,null,null,null,"[PT23] (Transl./angewandte Forschung) Kardiovaskuläre Erkrankung des Menschen"]
[null,"A30","Reptilien (Reptilia)",null,"[A30] Reptilien (Reptilia)",null,null,null,null,null,null," ",null,null,null,null,null,null,null,"[PT24] (Transl./angewandte Forschung) Nerven- und Geisteserkrankungen des Menschen"]
[null,"A31","Frösche (Rana temporaria und pipiens)",null,"[A31] Frösche (Rana temporaria und pipiens)",null,null,null,null,null,null," ",null,null,null,null,null,null,null,"[PT25] (Transl./angewandte Forschung) Atemwegserkrankungen des Menschen"]
[null,"A32","Krallenfrösche (Xenopus laevis und tropicalis)",null,"[A32] Krallenfrösche (Xenopus laevis und tropicalis)",null,null,null,null,null,null," ",null,null,null,null,null,null,null,"[PT26] (Transl./angewandte Forschung) Gastrointestinale Erkrankung des Menschen, einschließlich der Leber"]
[null,"A33","Andere Amphibien (Andere Amphibia)",null,"[A33] Andere Amphibien (Andere Amphibia)",null,null,null,null,null,null," ",null,null,null,null,null,null,null,"[PT27] (Transl./angewandte Forschung) Muskuloskelettale Erkrankung des Menschen"]
[null,"A34","Zebrafische (Danio rerio)",null,"[A34] Zebrafische (Danio rerio)",null,null,null,null,null,null," ",null,null,null,null,null,null,null,"[PT28] (Transl./angewandte Forschung) Immunerkrankungen des Menschen"]
[null,"A38","Wolfsbarsch (spp. z.B. Serranidae, Moronidae)",null,"[A38] Wolfsbarsch (spp. z.B. Serranidae, Moronidae)",null,null,null,null,null,null," ",null,null,null,null,null,null,null,"[PT29] (Transl./angewandte Forschung) Erkrankungen des urogenitalen/des Fortpflanzungssystems des Menschen"]
[null,"A39","Lachse, Forellen, Saiblinge und Äschen (Salmonidae)",null,"[A39] Lachse, Forellen, Saiblinge und Äschen (Salmonidae)",null,null,null,null,null,null," ",null,null,null,null,null,null,null,"[PT30] (Transl./angewandte Forschung) Erkrankungen der Sinnesorgane des Menschen (Haut, Augen und Ohren)"]
[null,"A40","Guppys, Schwertträger, Spitzmaulkärpflinge, Spiegelkärpflinge (Poeciliidae)",null,"[A40] Guppys, Schwertträger, Spitzmaulkärpflinge, Spiegelkärpflinge (Poeciliidae)",null,null,null,null,null,null," ",null,null,null,null,null,null,null,"[PT31] (Transl./angewandte Forschung) Erkrankungen des endokrinen Systems/des Stoffwechselsystems des Menschen"]
[null,"A35","Andere Fische (Andere Pisces)",null,"[A35] Andere Fische (Andere Pisces)",null,null,null,null,null,null," ",null,null,null,null,null,null,null,"[PT32] (Transl./angewandte Forschung) Andere Humanerkrankungen"]
[null,"A36","Kopffüßer (Cephalopoda)",null,"[A36] Kopffüßer (Cephalopoda)",null,null,null,null,null,null," ",null,null,null,null,null,null,null,"[PT33] (Transl./angewandte Forschung) Tiererkrankungen und - krankheiten"]
[null," ",null,null,null,null,null,null,null,null,null," ",null,null,null,null,null,null,null,"[PT38] (Transl./angewandte Forschung) Tierernährung"]
[null," ",null,null,null,null,null,null,null,null,null," ",null,null,null,null,null,null,null,"[PT34] (Transl./angewandte Forschung) Tierschutz"]
[null," ",null,null,null,null,null,null,null,null,null," ",null,null,null,null,null,null,null,"[PT35] (Transl./angewandte Forschung) Krankheitsdiagnose"]
[null," ",null,null,null,null,null,null,null,null,null," ",null,null,null,null,null,null,null,"[PT36] (Transl./angewandte Forschung) Pflanzenkrankheiten"]
[null," ",null,null,null,null,null,null,null,null,null," ",null,null,null,null,null,null,null,"[PT37] (Transl./angewandte Forschung) Nicht regulatorische Toxikologie und Ökotoxikologie"]
[null," ",null,null,null,null,null,null,null,null,null," ",null,null,null,null,null,null,null,"[PE40] Schutz der natürlichen Umwelt im Interesse der Gesundheit oder des Wohlbefindens von Menschen und Tieren"]
[null," ",null,null,null,null,null,null,null,null,null," ",null,null,null,null,null,null,null,"[PS41] Erhaltung der Art"]
[null," ",null,null,null,null,null,null,null,null,null," ",null,null,null,null,null,null,null,"[PE42-1] Hochschulausbildung"]
[null," ",null,null,null,null,null,null,null,null,null," ",null,null,null,null,null,null,null,"[PE42-2] Schulung zum Erwerb, zur Erhaltung oder zur Verbesserung beruflicher Fähigkeiten"]
[null," ",null,null,null,null,null,null,null,null,null," ",null,null,null,null,null,null,null,"[PF43] Forensische Untersuchungen"]
[null," ",null,null,null,null,null,null,null,null,null," ",null,null,null,null,null,null,null,"[PG43] Erhaltung von Kolonien etablierter genetisch veränderter Tiere, die nicht in anderen Verfahren verwendet werden"]
[null," ",null,null,null,null,null,null,null,null,null," ",null,null,null,null,null,null,null,"[PR51] (Routineproduktion) Produkte auf Blutbasis"]
[null," ",null,null,null,null,null,null,null,null,null," ",null,null,null,null,null,null,null,"[PR52] (Routineproduktion) Monoklonale Antikörper nur im Aszites-Verfahren"]
[null," ",null,null,null,null,null,null,null,null,null," ",null,null,null,null,null,null,null,"[PR54] (Routineproduktion) Monoklonale und polyklonale Antikörper (ausgenommen im Aszites-Verfahren)"]
[null," ",null,null,null,null,null,null,null,null,null," ",null,null,null,null,null,null,null,"[PR53] (Routineproduktion) Andere Produkte"]
[null," ",null,null,null,null,null,null,null,null,null," ",null,null,null,null,null,null,null,"[PR61] (Regulatorische Zwecke/ Qualitätskontrolle) Chargenunbedenklichkeitsprüfungen"]
[null," ",null,null,null,null,null,null,null,null,null," ",null,null,null,null,null,null,null,"[PR62] (Regulatorische Zwecke/ Qualitätskontrolle) Pyrogenitätsprüfungen"]
[null," ",null,null,null,null,null,null,null,null,null," ",null,null,null,null,null,null,null,"[PR63] (Regulatorische Zwecke/ Qualitätskontrolle) Chargenpotenzprüfungen"]
[null," ",null,null,null,null,null,null,null,null,null," ",null,null,null,null,null,null,null,"[PR64] (Regulatorische Zwecke/ Qualitätskontrolle) Andere Qualitätskontrollen"]
[null," ",null,null,null,null,null,null,null,null,null," ",null,null,null,null,null,null,null,"[PR71] (Regulatorische Zwecke) Andere Wirksamkeits- und Toleranzprüfungen"]
[null," ",null,null,null,null,null,null,null,null,null," ",null,null,null,null,null,null,null,"[PR81] (Regulatorische Zwecke/Toxizität und Andere../Akute Toxizität) LD50, LC50"]
[null," ",null,null,null,null,null,null,null,null,null," ",null,null,null,null,null,null,null,"[PR82] (Regulatorische Zwecke/Toxizität und Andere../Akute Toxizität) Andere letale Methoden"]
[null," ",null,null,null,null,null,null,null,null,null," ",null,null,null,null,null,null,null,"[PR83] (Regulatorische Zwecke/Toxizität und Andere../Akute Toxizität) Nichtletale Methoden"]
[null," ",null,null,null,null,null,null,null,null,null," ",null,null,null,null,null,null,null,"[PR84] (Regulatorische Zwecke/Toxizität und Andere..) Hautreizung/-verätzung"]
[null," ",null,null,null,null,null,null,null,null,null," ",null,null,null,null,null,null,null,"[PR85] (Regulatorische Zwecke/Toxizität und Andere..) Sensibilisierung der Haut"]
[null," ",null,null,null,null,null,null,null,null,null," ",null,null,null,null,null,null,null,"[PR86] (Regulatorische Zwecke/Toxizität und Andere..) Augenreizung/-verätzung"]
[null," ",null,null,null,null,null,null,null,null,null," ",null,null,null,null,null,null,null,"[PR87] (Regulatorische Zwecke/Toxizität und Andere../Toxizität bei wiederholter Verabreichung) Bis zu 28 Tage"]
[null," ",null,null,null,null,null,null,null,null,null," ",null,null,null,null,null,null,null,"[PR88] (Regulatorische Zwecke/Toxizität und Andere../Toxizität bei wiederholter Verabreichung) 29 - 90 Tage"]
[null," ",null,null,null,null,null,null,null,null,null," ",null,null,null,null,null,null,null,"[PR89] (Regulatorische Zwecke/Toxizität und Andere../Toxizität bei wiederholter Verabreichung) mehr als 90 Tage"]
[null," ",null,null,null,null,null,null,null,null,null," ",null,null,null,null,null,null,null,"[PR90] (Regulatorische Zwecke/Toxizität und Andere..) Kanzerogenität"]
[null," ",null,null,null,null,null,null,null,null,null," ",null,null,null,null,null,null,null,"[PR91] (Regulatorische Zwecke/Toxizität und Andere..) Genotoxizität"]
[null," ",null,null,null,null,null,null,null,null,null," ",null,null,null,null,null,null,null,"[PR92] (Regulatorische Zwecke/Toxizität und Andere..) Reproduktionstoxizität"]
[null," ",null,null,null,null,null,null,null,null,null," ",null,null,null,null,null,null,null,"[PR93] (Regulatorische Zwecke/Toxizität und Andere..) Entwicklungstoxizität"]
[null," ",null,null,null,null,null,null,null,null,null," ",null,null,null,null,null,null,null,"[PR94] (Regulatorische Zwecke/Toxizität und Andere..) Neurotoxizität"]
[null," ",null,null,null,null,null,null,null,null,null,null,null,null,null,null,null,null,null,"[PR95] (Regulatorische Zwecke/Toxizität und Andere..) Kinetik (Pharmakokinetik, Toxikokinetik, Rückstandsabbau)"]
[null," ",null,null,null,null,null,null,null,null,null,null,null,null,null,null,null,null,null,"[PR96] (Regulatorische Zwecke/Toxizität und Andere..) Pharmakodynamik (einschließlich Sicherheitspharmakologie)"]
[null," ",null,null,null,null,null,null,null,null,null,null,null,null,null,null,null,null,null,"[PR97] (Regulatorische Zwecke/Toxizität und Andere..) Fototoxizität"]
[null,null,null,null,null,null,null,null,null,null,null,null,null,null,null,null,null,null,null,"[PR98] (Regulatorische Zwecke/Toxizität und Andere../Ökotoxizität) Akute Toxizität (Ökotoxizität)"]
[null,null,null,null,null,null,null,null,null,null,null,null,null,null,null,null,null,null,null,"[PR99] (Regulatorische Zwecke/Toxizität und Andere../Ökotoxizität) Chronische Toxizität (Ökotoxizität)"]
[null,null,null,null,null,null,null,null,null,null,null,null,null,null,null,null,null,null,null,"[PR100] (Regulatorische Zwecke/Toxizität und Andere../Ökotoxizität) Reproduktionstoxizität (Ökotoxizität)"]
[null,null,null,null,null,null,null,null,null,null,null,null,null,null,null,null,null,null,null,"[PR101] (Regulatorische Zwecke/Toxizität und Andere../Ökotoxizität) Endokrine Wirkung (Ökotoxizität)"]
[null,null,null,null,null,null,null,null,null,null,null,null,null,null,null,null,null,null,null,"[PR102] (Regulatorische Zwecke/Toxizität und Andere../Ökotoxizität) Bioakkumulation (Ökotoxizität)"]
[null,null,null,null,null,null,null,null,null,null,null,null,null,null,null,null,null,null,null,"[PR103] (Regulatorische Zwecke/Toxizität und Andere../Ökotoxizität) Andere Ökotoxizität"]
[null,null,null,null,null,null,null,null,null,null,null,null,null,null,null,null,null,null,null,"[PR104] (Regulatorische Zwecke/Toxizität und Andere..) Unbedenklichkeitsprüfung von Nahrungs- und Futtermitteln"]
[null,null,null,null,null,null,null,null,null,null,null,null,null,null,null,null,null,null,null,"[PR105] (Regulatorische Zwecke/Toxizität und Andere..) Unbedenklichkeit für Zieltiere"]
[null,null,null,null,null,null,null,null,null,null,null,null,null,null,null,null,null,null,null,"[PR107] (Regulatorische Zwecke/Toxizität und Andere..) Kombinierte Endpunkte"]
[null,null,null,null,null,null,null,null,null,null,null,null,null,null,null,null,null,null,null,"[PR106] (Regulatorische Zwecke/Toxizität und Andere..) Andere Toxizitäts- oder Unbedenklichkeitsprüfungen"]

{"sheet":"Refinement der Genotypisierung","index":3,"n_rows":2,"n_cols":1,"rows_kept":2,"cut":false,"hidden":false,"merged":[]}
[{"$f":"label_efforts_made_to_refine2","v":"Informationen zu Verbesserungen (Refinement) der Methoden zur Genotypsierung, insbesondere bei Gewebeproben"}]
["Falls Sie Genotypisierungen melden, beschreiben Sie hier bitte, inwiefern Sie Bestrebungen unternommen haben, die Methode(n) der Genotypisierungen zu verbessern (Refinement)"]

{"sheet":"Validierung","index":4,"n_rows":8,"n_cols":2,"rows_kept":8,"cut":false,"hidden":false,"merged":[[2,1,5,6],[7,1,10,6]]}
[]
[]
[null,"Um eine Vorab-Validierung der Daten durchzuführen, klicken Sie bitte \"Validieren\". Sie müssen diese Funktion erneut ausführen, wenn Sie Änderungen an der Tabelle vornehmen."]
[]
[]
[]
[]
[null,"Die Funktion färbt fehlende oder widersprüchliche Angaben rot ein."]